[Event "*** Titled Tuesday Blitz"]
[Site "Chess.com"]
[Date "2021.02.02"]
[Round "2"]
[White "GM4life"]
[Black "Szparu"]
[Result "0-1"]
[WhiteElo "2360"]
[BlackElo "2644"]
[TimeControl "180+1"]
[EndTime "10:19:58 PST"]
[Termination "Szparu won by checkmate"]

1. e4 {[%clk 0:03:00.9]} 1... c5 {[%clk 0:02:52.6]} 2. Nf3 {[%clk 0:03:00.9]}
2... Nc6 {[%clk 0:02:51.5]} 3. d4 {[%clk 0:03:01.4]} 3... cxd4 {[%clk
0:02:51.6]} 4. Nxd4 {[%clk 0:03:02]} 4... Nf6 {[%clk 0:02:52.5]} 5. Nc3 {[%clk
0:03:02.1]} 5... d6 {[%clk 0:02:52.4]} 6. Bg5 {[%clk 0:03:01.1]} 6... e6 {[%clk
0:02:50.6]} 7. Qd2 {[%clk 0:03:01.2]} 7... a6 {[%clk 0:02:35.1]} 8. O-O-O {[%clk
0:03:01.1]} 8... h6 {[%clk 0:02:33.6]} 9. Bh4 {[%clk 0:02:52.5]} 9... Nxe4
{[%clk 0:02:32.9]} 10. Qf4 {[%clk 0:02:25.3]} 10... Ng5 {[%clk 0:02:32.4]} 11.
Nxc6 {[%clk 0:02:21.5]} 11... bxc6 {[%clk 0:02:32]} 12. Ne4 {[%clk 0:02:18.2]}
12... e5 {[%clk 0:02:12.8]} 13. Bxg5 {[%clk 0:01:56.6]} 13... hxg5 {[%clk
0:01:59.1]} 14. Qxg5 {[%clk 0:01:56.4]} 14... Qxg5+ {[%clk 0:01:49.7]} 15. Nxg5
{[%clk 0:01:57.3]} 15... Be7 {[%clk 0:01:40]} 16. Nf3 {[%clk 0:01:48.5]} 16...
Be6 {[%clk 0:01:38.5]} 17. Kb1 {[%clk 0:01:47.7]} 17... g5 {[%clk 0:01:35.7]}
18. Nd2 {[%clk 0:01:40.1]} 18... d5 {[%clk 0:01:31.9]} 19. f3 {[%clk 0:01:35.1]}
19... f5 {[%clk 0:01:29.9]} 20. Re1 {[%clk 0:01:32.7]} 20... Bf6 {[%clk
0:01:27.4]} 21. Bd3 {[%clk 0:01:22]} 21... Ke7 {[%clk 0:01:25.1]} 22. Nb3 {[%clk
0:01:15.5]} 22... Kd6 {[%clk 0:01:24.9]} 23. h3 {[%clk 0:01:03.9]} 23... g4
{[%clk 0:01:11]} 24. hxg4 {[%clk 0:00:57.2]} 24... fxg4 {[%clk 0:01:11.9]} 25.
Rd1 {[%clk 0:00:47.9]} 25... Rxh1 {[%clk 0:01:00.2]} 26. Rxh1 {[%clk 0:00:47.3]}
26... gxf3 {[%clk 0:01:01.1]} 27. gxf3 {[%clk 0:00:46.8]} 27... Bg5 {[%clk
0:00:34.9]} 28. Rh5 {[%clk 0:00:42.4]} 28... Be3 {[%clk 0:00:28]} 29. c3 {[%clk
0:00:27.9]} 29... a5 {[%clk 0:00:22.8]} 30. a4 {[%clk 0:00:24.6]} 30... c5
{[%clk 0:00:18.3]} 31. Bb5 {[%clk 0:00:22.8]} 31... c4 {[%clk 0:00:18]} 32. Na1
{[%clk 0:00:17.4]} 32... Rg8 {[%clk 0:00:18.4]} 33. Nc2 {[%clk 0:00:17.2]} 33...
Rg1+ {[%clk 0:00:18.2]} 34. Ka2 {[%clk 0:00:17.5]} 34... Bf4 {[%clk 0:00:17.2]}
35. b3 {[%clk 0:00:13.2]} 35... Rg2 {[%clk 0:00:17.3]} 36. Kb2 {[%clk
0:00:13.1]} 36... cxb3 {[%clk 0:00:15.4]} 37. Kxb3 {[%clk 0:00:13.3]} 37... d4+
{[%clk 0:00:15.9]} 38. c4 {[%clk 0:00:13.5]} 38... d3 {[%clk 0:00:16]} 39. Na3
{[%clk 0:00:13.2]} 39... d2 {[%clk 0:00:14.9]} 40. Rh1 {[%clk 0:00:13.3]} 40...
Re2 {[%clk 0:00:14]} 41. Kc2 {[%clk 0:00:13.4]} 41... Re1 {[%clk 0:00:14.3]} 42.
Rh6 {[%clk 0:00:12.2]} 42... d1=Q+ {[%clk 0:00:14]} 43. Kb2 {[%clk 0:00:12.8]}
43... Qc1+ {[%clk 0:00:12.2]} 44. Kb3 {[%clk 0:00:12.9]} 44... Re3+ {[%clk
0:00:12.1]} 45. Ka2 {[%clk 0:00:11.2]} 45... Rxa3# {[%clk 0:00:12.5]} 0-1

[Event "*** Titled Tuesday Blitz"]
[Site "Chess.com"]
[Date "2021.02.02"]
[Round "2"]
[White "MariaFominykh"]
[Black "Katheksis"]
[Result "0-1"]
[WhiteElo "2284"]
[BlackElo "2485"]
[TimeControl "180+1"]
[EndTime "10:19:58 PST"]
[Termination "Katheksis won on time"]

1. d4 {[%clk 0:03:00.9]} 1... f5 {[%clk 0:02:56.5]} 2. Bg5 {[%clk 0:02:59.5]}
2... h6 {[%clk 0:02:56.5]} 3. Bh4 {[%clk 0:02:55.6]} 3... g5 {[%clk 0:02:56.7]}
4. Bg3 {[%clk 0:02:53]} 4... Nf6 {[%clk 0:02:56]} 5. e3 {[%clk 0:02:47.4]} 5...
d6 {[%clk 0:02:49.7]} 6. c4 {[%clk 0:02:36.9]} 6... Nc6 {[%clk 0:02:46.1]} 7.
Nc3 {[%clk 0:02:35.5]} 7... Bg7 {[%clk 0:02:39.8]} 8. Nf3 {[%clk 0:02:19.8]}
8... Nh5 {[%clk 0:02:09.3]} 9. d5 {[%clk 0:01:46.8]} 9... Nxg3 {[%clk
0:02:05.1]} 10. hxg3 {[%clk 0:01:42.1]} 10... Nb8 {[%clk 0:01:33.6]} 11. Nd4
{[%clk 0:01:34.2]} 11... O-O {[%clk 0:01:26.5]} 12. Qd2 {[%clk 0:01:20.9]} 12...
c5 {[%clk 0:01:19.6]} 13. Nc2 {[%clk 0:00:50.4]} 13... Nd7 {[%clk 0:01:12.8]}
14. f4 {[%clk 0:00:45.8]} 14... Nf6 {[%clk 0:01:03.9]} 15. fxg5 {[%clk
0:00:35.5]} 15... hxg5 {[%clk 0:01:04.8]} 16. Bd3 {[%clk 0:00:34.9]} 16... e5
{[%clk 0:00:54.2]} 17. e4 {[%clk 0:00:20.3]} 17... f4 {[%clk 0:00:54]} 18. O-O-O
{[%clk 0:00:19.1]} 18... Bd7 {[%clk 0:00:39.5]} 19. Be2 {[%clk 0:00:13.3]} 19...
Qe8 {[%clk 0:00:35.9]} 20. gxf4 {[%clk 0:00:06.8]} 20... exf4 {[%clk 0:00:36.8]}
21. g3 {[%clk 0:00:05.8]} 21... Nxe4 {[%clk 0:00:24.2]} 22. Nxe4 {[%clk
0:00:06.7]} 22... Qxe4 {[%clk 0:00:24.7]} 23. Bd3 {[%clk 0:00:06.7]} 23... Qe5
{[%clk 0:00:25]} 24. Bh7+ {[%clk 0:00:06.2]} 24... Kf7 {[%clk 0:00:25]} 25. Ne1
{[%clk 0:00:05]} 25... Qe3 {[%clk 0:00:17.2]} 26. Nd3 {[%clk 0:00:03.9]} 26...
Qxd2+ {[%clk 0:00:17.2]} 27. Rxd2 {[%clk 0:00:04]} 27... f3 {[%clk 0:00:17.4]}
28. Rf2 {[%clk 0:00:02.2]} 28... g4 {[%clk 0:00:17.7]} 29. Nf4 {[%clk
0:00:02.4]} 29... Bd4 {[%clk 0:00:17.8]} 30. Bg6+ {[%clk 0:00:02.7]} 30... Kg7
{[%clk 0:00:18]} 31. Rfh2 {[%clk 0:00:02.4]} 31... Rh8 {[%clk 0:00:17.5]} 32.
Rh7+ {[%clk 0:00:01.5]} 32... Rxh7 {[%clk 0:00:16.4]} 33. Rxh7+ {[%clk
0:00:02.4]} 33... Kf6 {[%clk 0:00:17]} 34. Rxd7 {[%clk 0:00:02.3]} 34... Be3+
{[%clk 0:00:17.4]} 35. Kc2 {[%clk 0:00:01.4]} 35... Bxf4 {[%clk 0:00:18.1]} 36.
Rf7+ {[%clk 0:00:02]} 36... Kxg6 {[%clk 0:00:18.3]} 37. gxf4 {[%clk 0:00:02.6]}
37... f2 {[%clk 0:00:17.2]} 38. Rxb7 {[%clk 0:00:01.6]} 38... f1=Q {[%clk
0:00:17.2]} 39. f5+ {[%clk 0:00:01.8]} 39... Qxf5+ {[%clk 0:00:16.5]} 0-1

[Event "*** Titled Tuesday Blitz"]
[Site "Chess.com"]
[Date "2021.02.02"]
[Round "2"]
[White "Chimpinha"]
[Black "ChessQueen"]
[Result "0-1"]
[WhiteElo "2397"]
[BlackElo "2723"]
[TimeControl "180+1"]
[EndTime "10:19:59 PST"]
[Termination "ChessQueen won by resignation"]

1. d4 {[%clk 0:03:00.9]} 1... Nf6 {[%clk 0:02:59.2]} 2. c4 {[%clk 0:03:00.2]}
2... e6 {[%clk 0:02:59.3]} 3. Nc3 {[%clk 0:03:00.1]} 3... Bb4 {[%clk 0:02:58.6]}
4. Nf3 {[%clk 0:02:58.8]} 4... b6 {[%clk 0:02:57.6]} 5. Bg5 {[%clk 0:02:57.9]}
5... h6 {[%clk 0:02:52.9]} 6. Bh4 {[%clk 0:02:57.5]} 6... g5 {[%clk 0:02:51.5]}
7. Bg3 {[%clk 0:02:57.3]} 7... Ne4 {[%clk 0:02:51.8]} 8. Qc2 {[%clk 0:02:53]}
8... Bb7 {[%clk 0:02:51.6]} 9. Nd2 {[%clk 0:02:52.7]} 9... Bxc3 {[%clk
0:02:46.3]} 10. bxc3 {[%clk 0:02:51.8]} 10... Nxg3 {[%clk 0:02:46.5]} 11. hxg3
{[%clk 0:02:51.6]} 11... d6 {[%clk 0:02:46.5]} 12. f3 {[%clk 0:02:50.3]} 12...
Nd7 {[%clk 0:02:45]} 13. e4 {[%clk 0:02:50.2]} 13... Qe7 {[%clk 0:02:42.3]} 14.
Bd3 {[%clk 0:02:49.3]} 14... a5 {[%clk 0:02:38.5]} 15. g4 {[%clk 0:02:42.5]}
15... O-O-O {[%clk 0:02:29.6]} 16. O-O-O {[%clk 0:02:41.8]} 16... Nf6 {[%clk
0:02:17.7]} 17. Rh3 {[%clk 0:02:35.5]} 17... h5 {[%clk 0:02:16.2]} 18. gxh5
{[%clk 0:02:31]} 18... Rxh5 {[%clk 0:01:49.4]} 19. Rdh1 {[%clk 0:02:29.5]} 19...
Rdh8 {[%clk 0:01:39.3]} 20. Rxh5 {[%clk 0:02:08.3]} 20... Rxh5 {[%clk
0:01:38.9]} 21. Rxh5 {[%clk 0:02:02.4]} 21... Nxh5 {[%clk 0:01:39.8]} 22. Nf1
{[%clk 0:01:57.7]} 22... Bc6 {[%clk 0:01:35.4]} 23. Ne3 {[%clk 0:01:55.1]} 23...
Qf6 {[%clk 0:01:34.9]} 24. Qd2 {[%clk 0:01:40.6]} 24... Qf4 {[%clk 0:01:30.7]}
25. Nf1 {[%clk 0:01:35]} 25... f6 {[%clk 0:01:20.2]} 26. Qxf4 {[%clk 0:01:29.4]}
26... Nxf4 {[%clk 0:01:12.6]} 27. Kd2 {[%clk 0:01:14.1]} 27... Nxg2 {[%clk
0:01:12.5]} 28. d5 {[%clk 0:01:13.4]} 28... Bd7 {[%clk 0:01:10.9]} 29. Ne3
{[%clk 0:01:04.2]} 29... Nxe3 {[%clk 0:01:06.1]} 30. Kxe3 {[%clk 0:01:04.1]}
30... Kd8 {[%clk 0:01:06]} 31. Be2 {[%clk 0:01:00.1]} 31... Ke7 {[%clk
0:01:05.4]} 32. f4 {[%clk 0:01:00.3]} 32... gxf4+ {[%clk 0:01:02]} 33. Kxf4
{[%clk 0:00:59.9]} 33... e5+ {[%clk 0:01:02.5]} 34. Ke3 {[%clk 0:00:58.8]} 34...
f5 {[%clk 0:01:02.8]} 35. exf5 {[%clk 0:00:56]} 35... Bxf5 {[%clk 0:01:02.8]}
36. a3 {[%clk 0:00:55]} 36... Kf6 {[%clk 0:01:02.2]} 37. Bd1 {[%clk 0:00:53.8]}
37... Bh3 {[%clk 0:00:56.2]} 38. Be2 {[%clk 0:00:46.2]} 38... Bg2 {[%clk
0:00:56.2]} 39. Bd3 {[%clk 0:00:43.8]} 39... Kg5 {[%clk 0:00:54.1]} 40. Be2
{[%clk 0:00:41.8]} 40... Kf5 {[%clk 0:00:54.5]} 41. Bd3+ {[%clk 0:00:41.5]}
41... e4 {[%clk 0:00:51.6]} 42. Be2 {[%clk 0:00:38.6]} 42... Ke5 {[%clk
0:00:51.9]} 43. Bd1 {[%clk 0:00:32.1]} 43... Bf1 {[%clk 0:00:49.2]} 44. Bb3
{[%clk 0:00:31.8]} 44... Bd3 {[%clk 0:00:47.5]} 45. c5 {[%clk 0:00:16.9]} 45...
dxc5 {[%clk 0:00:33.5]} 46. c4 {[%clk 0:00:17.1]} 46... a4 {[%clk 0:00:32.5]}
47. Ba2 {[%clk 0:00:16.7]} 47... Kf5 {[%clk 0:00:28.9]} 0-1

[Event "*** Titled Tuesday Blitz"]
[Site "Chess.com"]
[Date "2021.02.02"]
[Round "2"]
[White "fridaywins"]
[Black "Gmedmundo"]
[Result "1-0"]
[WhiteElo "2145"]
[BlackElo "2388"]
[TimeControl "180+1"]
[EndTime "10:19:59 PST"]
[Termination "fridaywins won on time"]

1. e4 {[%clk 0:03:00.9]} 1... c5 {[%clk 0:02:59.3]} 2. Nf3 {[%clk 0:03:01.1]}
2... d6 {[%clk 0:02:58.8]} 3. d4 {[%clk 0:03:01.2]} 3... cxd4 {[%clk 0:02:58.2]}
4. Nxd4 {[%clk 0:03:02.1]} 4... Nf6 {[%clk 0:02:57.1]} 5. Nc3 {[%clk 0:03:02.6]}
5... Nc6 {[%clk 0:02:56.1]} 6. f4 {[%clk 0:02:57.4]} 6... g6 {[%clk 0:02:52]} 7.
Nf3 {[%clk 0:02:56.9]} 7... Bg7 {[%clk 0:02:50.4]} 8. Bd3 {[%clk 0:02:57.4]}
8... O-O {[%clk 0:02:48.7]} 9. O-O {[%clk 0:02:57.2]} 9... a6 {[%clk 0:02:46.2]}
10. a4 {[%clk 0:02:55.7]} 10... Bg4 {[%clk 0:02:40.3]} 11. h3 {[%clk 0:02:55]}
11... Bxf3 {[%clk 0:02:39.1]} 12. Qxf3 {[%clk 0:02:55.1]} 12... Rc8 {[%clk
0:02:33.5]} 13. Be3 {[%clk 0:02:44.9]} 13... Nd7 {[%clk 0:02:32]} 14. Qf2 {[%clk
0:02:34.9]} 14... Nb4 {[%clk 0:02:28.9]} 15. Nd5 {[%clk 0:02:17.3]} 15... Nxd5
{[%clk 0:02:24.9]} 16. exd5 {[%clk 0:02:17]} 16... Nc5 {[%clk 0:02:19.4]} 17.
Bd4 {[%clk 0:01:47.3]} 17... Nxd3 {[%clk 0:02:17.2]} 18. cxd3 {[%clk 0:01:48.2]}
18... Qa5 {[%clk 0:02:00.9]} 19. Bxg7 {[%clk 0:01:46]} 19... Kxg7 {[%clk
0:02:00.4]} 20. Qd4+ {[%clk 0:01:46.4]} 20... Kg8 {[%clk 0:01:58]} 21. b4 {[%clk
0:01:34.7]} 21... Qc7 {[%clk 0:01:55.5]} 22. Rae1 {[%clk 0:01:22]} 22... Rfe8
{[%clk 0:01:39.1]} 23. Re4 {[%clk 0:00:56.4]} 23... Qc3 {[%clk 0:01:36.7]} 24.
Qe3 {[%clk 0:00:56.4]} 24... Qb2 {[%clk 0:01:30.3]} 25. f5 {[%clk 0:00:45.5]}
25... Rc2 {[%clk 0:01:25.1]} 26. Rg4 {[%clk 0:00:41.8]} 26... Qe5 {[%clk
0:00:54.4]} 27. Qf3 {[%clk 0:00:31.1]} 27... Rf8 {[%clk 0:00:47.4]} 28. fxg6
{[%clk 0:00:30]} 28... hxg6 {[%clk 0:00:45.1]} 29. Rxg6+ {[%clk 0:00:30.2]}
29... Kh7 {[%clk 0:00:43.1]} 30. Rg4 {[%clk 0:00:22.3]} 30... f5 {[%clk
0:00:40.4]} 31. Rh4+ {[%clk 0:00:20]} 31... Kg7 {[%clk 0:00:39.8]} 32. Qh5
{[%clk 0:00:20]} 32... Qg3 {[%clk 0:00:19.8]} 33. Qh6+ {[%clk 0:00:18.7]} 33...
Kf7 {[%clk 0:00:19]} 34. Qh5+ {[%clk 0:00:17.7]} 34... Kf6 {[%clk 0:00:18.5]}
35. Qxf5+ {[%clk 0:00:17.3]} 35... Kg7 {[%clk 0:00:17.7]} 36. Rh7+ {[%clk
0:00:16.2]} 36... Kg8 {[%clk 0:00:16.8]} 37. Rh8+ {[%clk 0:00:16.2]} 37... Kxh8
{[%clk 0:00:16.1]} 38. Qxf8+ {[%clk 0:00:17.1]} 38... Kh7 {[%clk 0:00:16]} 39.
Rf7+ {[%clk 0:00:17.7]} 39... Kg6 {[%clk 0:00:15.8]} 40. Rg7+ {[%clk 0:00:18.4]}
40... Kh5 {[%clk 0:00:14.8]} 41. Rxg3 {[%clk 0:00:19.3]} 1-0

[Event "*** Titled Tuesday Blitz"]
[Site "Chess.com"]
[Date "2021.02.02"]
[Round "2"]
[White "MarceloPlaya"]
[Black "onnoelgersma"]
[Result "0-1"]
[WhiteElo "2291"]
[BlackElo "2486"]
[TimeControl "180+1"]
[EndTime "10:20:04 PST"]
[Termination "onnoelgersma won on time"]

1. e4 {[%clk 0:03:00.9]} 1... c5 {[%clk 0:03:00.4]} 2. Nf3 {[%clk 0:02:59.7]}
2... e6 {[%clk 0:03:00.8]} 3. d4 {[%clk 0:02:56.3]} 3... cxd4 {[%clk 0:03:01.7]}
4. Nxd4 {[%clk 0:02:56.3]} 4... Nc6 {[%clk 0:03:02.6]} 5. Nc3 {[%clk 0:02:56.1]}
5... a6 {[%clk 0:03:02.7]} 6. Be3 {[%clk 0:02:54.3]} 6... Nf6 {[%clk 0:03:02.6]}
7. Bd3 {[%clk 0:02:50.5]} 7... h5 {[%clk 0:02:59.9]} 8. Qd2 {[%clk 0:02:46]}
8... Bb4 {[%clk 0:02:53]} 9. O-O-O {[%clk 0:02:34.8]} 9... Qa5 {[%clk
0:02:46.5]} 10. Nb3 {[%clk 0:02:24.7]} 10... Qc7 {[%clk 0:02:45.4]} 11. Kb1
{[%clk 0:02:09.6]} 11... b5 {[%clk 0:02:43.2]} 12. f4 {[%clk 0:02:04.8]} 12...
Bb7 {[%clk 0:02:28]} 13. e5 {[%clk 0:02:00]} 13... Ng4 {[%clk 0:02:17.4]} 14.
Bc5 {[%clk 0:01:55.8]} 14... Rc8 {[%clk 0:01:36.6]} 15. Bxb4 {[%clk 0:01:25.1]}
15... Nxb4 {[%clk 0:01:35.6]} 16. Nxb5 {[%clk 0:01:23.3]} 16... axb5 {[%clk
0:01:22.3]} 17. Qxb4 {[%clk 0:01:22.5]} 17... Nf2 {[%clk 0:01:13.4]} 18. Rhe1
{[%clk 0:00:54.3]} 18... Nxd1 {[%clk 0:01:04.8]} 19. Rxd1 {[%clk 0:00:53.4]}
19... Bd5 {[%clk 0:01:00.8]} 20. Rd2 {[%clk 0:00:42]} 20... Bxb3 {[%clk
0:00:57.9]} 21. axb3 {[%clk 0:00:36.1]} 21... Qc5 {[%clk 0:00:57]} 22. Qxb5
{[%clk 0:00:25.7]} 22... Qg1+ {[%clk 0:00:53.7]} 23. Bf1 {[%clk 0:00:23.8]}
23... O-O {[%clk 0:00:53.6]} 24. Qe2 {[%clk 0:00:17.2]} 24... Ra8 {[%clk
0:00:44.5]} 25. Rd1 {[%clk 0:00:14.2]} 25... Qa7 {[%clk 0:00:43.1]} 26. c3
{[%clk 0:00:13.3]} 26... Rfc8 {[%clk 0:00:33.3]} 27. Qe4 {[%clk 0:00:11.8]}
27... Qa2+ {[%clk 0:00:30.6]} 28. Kc2 {[%clk 0:00:11.1]} 28... Rab8 {[%clk
0:00:30.9]} 29. Bc4 {[%clk 0:00:09.3]} 29... Qa7 {[%clk 0:00:25.8]} 30. Bd3
{[%clk 0:00:07.9]} 30... Qb6 {[%clk 0:00:23.9]} 31. Qh7+ {[%clk 0:00:06.7]}
31... Kf8 {[%clk 0:00:23.4]} 32. b4 {[%clk 0:00:06.1]} 32... Qf2+ {[%clk
0:00:20.2]} 33. Rd2 {[%clk 0:00:04.8]} 33... Qxf4 {[%clk 0:00:21.1]} 34. Qh8+
{[%clk 0:00:04.2]} 34... Ke7 {[%clk 0:00:21.4]} 35. Qxg7 {[%clk 0:00:04.1]}
35... Rg8 {[%clk 0:00:21.3]} 36. Qh7 {[%clk 0:00:03.2]} 36... Rh8 {[%clk
0:00:21.4]} 37. Qg7 {[%clk 0:00:02.1]} 37... Rbg8 {[%clk 0:00:20.9]} 38. Qf6+
{[%clk 0:00:02.6]} 38... Qxf6 {[%clk 0:00:20.9]} 39. exf6+ {[%clk 0:00:03.2]}
39... Kxf6 {[%clk 0:00:21.8]} 40. b5 {[%clk 0:00:03.5]} 40... d5 {[%clk
0:00:21.7]} 41. b3 {[%clk 0:00:01.2]} 41... Rb8 {[%clk 0:00:22.1]} 42. c4 {[%clk
0:00:01.1]} 42... Rhc8 {[%clk 0:00:22.7]} 0-1

[Event "*** Titled Tuesday Blitz"]
[Site "Chess.com"]
[Date "2021.02.02"]
[Round "2"]
[White "SharapovEvgeny"]
[Black "Matols"]
[Result "1/2-1/2"]
[WhiteElo "2456"]
[BlackElo "2264"]
[TimeControl "180+1"]
[EndTime "10:20:05 PST"]
[Termination "Game drawn - insufficient material"]

1. e4 {[%clk 0:02:59.8]} 1... e6 {[%clk 0:02:59.5]} 2. d4 {[%clk 0:02:58.8]}
2... d5 {[%clk 0:02:59.5]} 3. Nc3 {[%clk 0:02:58.2]} 3... Nf6 {[%clk 0:02:57.2]}
4. e5 {[%clk 0:02:57.8]} 4... Nfd7 {[%clk 0:02:57]} 5. f4 {[%clk 0:02:57.9]}
5... c5 {[%clk 0:02:57]} 6. Nf3 {[%clk 0:02:58]} 6... Nc6 {[%clk 0:02:56.1]} 7.
Be3 {[%clk 0:02:57.4]} 7... cxd4 {[%clk 0:02:55]} 8. Nxd4 {[%clk 0:02:56.9]}
8... Bc5 {[%clk 0:02:55.5]} 9. Qd2 {[%clk 0:02:56.6]} 9... O-O {[%clk
0:02:55.2]} 10. O-O-O {[%clk 0:02:56.2]} 10... a6 {[%clk 0:02:55.4]} 11. Qf2
{[%clk 0:02:53.4]} 11... Bxd4 {[%clk 0:02:49.9]} 12. Bxd4 {[%clk 0:02:52.9]}
12... b5 {[%clk 0:02:50.1]} 13. Bd3 {[%clk 0:02:51.5]} 13... b4 {[%clk
0:02:47.6]} 14. Ne2 {[%clk 0:02:51.1]} 14... a5 {[%clk 0:02:46.9]} 15. Kb1
{[%clk 0:02:50.6]} 15... a4 {[%clk 0:02:45.6]} 16. h4 {[%clk 0:02:39.6]} 16...
Ba6 {[%clk 0:02:44.5]} 17. h5 {[%clk 0:02:39.1]} 17... Qa5 {[%clk 0:02:37.1]}
18. h6 {[%clk 0:02:37.3]} 18... g6 {[%clk 0:02:36.7]} 19. Be3 {[%clk 0:02:24]}
19... Rfc8 {[%clk 0:02:22.8]} 20. Nd4 {[%clk 0:02:22.4]} 20... Nxd4 {[%clk
0:02:10.5]} 21. Bxd4 {[%clk 0:02:22.1]} 21... Nc5 {[%clk 0:02:09.8]} 22. Bxc5
{[%clk 0:02:20.9]} 22... Qxc5 {[%clk 0:01:50.7]} 23. Qxc5 {[%clk 0:02:19.3]}
23... Rxc5 {[%clk 0:01:49.9]} 24. Bxa6 {[%clk 0:02:15.9]} 24... Rxa6 {[%clk
0:01:49.3]} 25. Rd4 {[%clk 0:02:15.4]} 25... Rb6 {[%clk 0:01:48.1]} 26. Rh3
{[%clk 0:02:10.2]} 26... Kf8 {[%clk 0:01:47.2]} 27. a3 {[%clk 0:02:05.5]} 27...
Rcb5 {[%clk 0:01:41]} 28. axb4 {[%clk 0:02:02.2]} 28... Rxb4 {[%clk 0:01:40.7]}
29. Rxb4 {[%clk 0:02:00.4]} 29... Rxb4 {[%clk 0:01:40.4]} 30. Rf3 {[%clk
0:01:52.2]} 30... Ke7 {[%clk 0:01:37]} 31. Ka2 {[%clk 0:01:50.4]} 31... f6
{[%clk 0:01:33.2]} 32. exf6+ {[%clk 0:01:47.9]} 32... Kxf6 {[%clk 0:01:33.1]}
33. Ka3 {[%clk 0:01:47.6]} 33... Re4 {[%clk 0:01:26.6]} 34. g3 {[%clk
0:01:46.7]} 34... Kf5 {[%clk 0:01:25.4]} 35. Rc3 {[%clk 0:01:44.5]} 35... g5
{[%clk 0:01:15.4]} 36. Rc7 {[%clk 0:01:40.1]} 36... gxf4 {[%clk 0:01:14.4]} 37.
Rxh7 {[%clk 0:01:29.7]} 37... fxg3 {[%clk 0:01:10]} 38. Rg7 {[%clk 0:01:28.9]}
38... Rh4 {[%clk 0:00:56.5]} 39. Rxg3 {[%clk 0:01:25.9]} 39... Rxh6 {[%clk
0:00:55.8]} 40. Kxa4 {[%clk 0:01:25.5]} 40... e5 {[%clk 0:00:56]} 41. b4 {[%clk
0:01:24.8]} 41... e4 {[%clk 0:00:55.3]} 42. b5 {[%clk 0:01:24.2]} 42... Kf4
{[%clk 0:00:55.5]} 43. Rb3 {[%clk 0:01:22.2]} 43... e3 {[%clk 0:00:55.2]} 44. b6
{[%clk 0:01:11]} 44... e2 {[%clk 0:00:53.7]} 45. b7 {[%clk 0:01:10.6]} 45... Rh8
{[%clk 0:00:40.7]} 46. Rb1 {[%clk 0:01:03.9]} 46... Ke3 {[%clk 0:00:39.4]} 47.
Kb5 {[%clk 0:00:57.7]} 47... Kd2 {[%clk 0:00:35.6]} 48. c4 {[%clk 0:00:57.2]}
48... Rb8 {[%clk 0:00:26.2]} 49. Rb2+ {[%clk 0:00:41.1]} 49... Kd3 {[%clk
0:00:25.6]} 50. Rxe2 {[%clk 0:00:40.5]} 50... Rxb7+ {[%clk 0:00:18.7]} 51. Kc6
{[%clk 0:00:37.4]} 51... Kxe2 {[%clk 0:00:17.6]} 52. cxd5 {[%clk 0:00:37.3]}
52... Rb1 {[%clk 0:00:14.4]} 53. d6 {[%clk 0:00:37.1]} 53... Rd1 {[%clk
0:00:12.9]} 54. d7 {[%clk 0:00:36.3]} 54... Ke3 {[%clk 0:00:12.9]} 55. Kc7
{[%clk 0:00:36]} 55... Rxd7+ {[%clk 0:00:12.6]} 56. Kxd7 {[%clk 0:00:35.8]}
1/2-1/2

[Event "*** Titled Tuesday Blitz"]
[Site "Chess.com"]
[Date "2021.02.02"]
[Round "2"]
[White "SaraciNderim"]
[Black "yobdc"]
[Result "1-0"]
[WhiteElo "2819"]
[BlackElo "2518"]
[TimeControl "180+1"]
[EndTime "10:20:06 PST"]
[Termination "SaraciNderim won on time"]

1. d4 {[%clk 0:03:00.9]} 1... e6 {[%clk 0:02:59.9]} 2. Nf3 {[%clk 0:03:00.8]}
2... f5 {[%clk 0:03:00.1]} 3. g3 {[%clk 0:02:59.6]} 3... Nf6 {[%clk 0:03:00.2]}
4. Bg2 {[%clk 0:02:59.7]} 4... Be7 {[%clk 0:03:00.5]} 5. O-O {[%clk 0:02:59.5]}
5... O-O {[%clk 0:03:00.8]} 6. c4 {[%clk 0:03:00]} 6... d6 {[%clk 0:03:01.2]} 7.
Nc3 {[%clk 0:02:59.5]} 7... Ne4 {[%clk 0:03:01.5]} 8. Qc2 {[%clk 0:02:53.3]}
8... Nxc3 {[%clk 0:03:01.2]} 9. Qxc3 {[%clk 0:02:51.3]} 9... a5 {[%clk
0:03:01.2]} 10. c5 {[%clk 0:02:49.4]} 10... Bf6 {[%clk 0:02:48.3]} 11. h4 {[%clk
0:02:40.6]} 11... Nc6 {[%clk 0:02:47.4]} 12. Bg5 {[%clk 0:02:37.1]} 12... h6
{[%clk 0:02:39.6]} 13. Bxf6 {[%clk 0:02:33.3]} 13... Qxf6 {[%clk 0:02:40.5]} 14.
Rfd1 {[%clk 0:02:31.1]} 14... Bd7 {[%clk 0:02:25.8]} 15. cxd6 {[%clk 0:02:28.3]}
15... cxd6 {[%clk 0:02:25.8]} 16. d5 {[%clk 0:02:26.9]} 16... Qxc3 {[%clk
0:02:25.6]} 17. bxc3 {[%clk 0:02:26.6]} 17... exd5 {[%clk 0:01:56.8]} 18. Rxd5
{[%clk 0:02:24.5]} 18... Rf6 {[%clk 0:01:52]} 19. Rad1 {[%clk 0:02:22.9]} 19...
Be6 {[%clk 0:01:50.1]} 20. Rb5 {[%clk 0:02:10.4]} 20... Bxa2 {[%clk 0:01:43.4]}
21. Rxb7 {[%clk 0:02:08.5]} 21... Ra6 {[%clk 0:01:22.5]} 22. Ra1 {[%clk
0:01:58.4]} 22... Bc4 {[%clk 0:01:22.2]} 23. e3 {[%clk 0:01:54.8]} 23... a4
{[%clk 0:01:18.6]} 24. Nd2 {[%clk 0:01:49.8]} 24... d5 {[%clk 0:01:08.1]} 25.
Nxc4 {[%clk 0:01:47]} 25... dxc4 {[%clk 0:01:09]} 26. Bd5+ {[%clk 0:01:43.7]}
26... Kh7 {[%clk 0:01:07.2]} 27. Bxc4 {[%clk 0:01:43.8]} 27... Ra5 {[%clk
0:01:03.9]} 28. Rb5 {[%clk 0:01:43.1]} 28... Ra7 {[%clk 0:00:56.5]} 29. Bd3
{[%clk 0:01:38]} 29... Ne7 {[%clk 0:00:51.6]} 30. Rb4 {[%clk 0:01:32.1]} 30...
a3 {[%clk 0:00:42.3]} 31. Rb3 {[%clk 0:01:30.2]} 31... a2 {[%clk 0:00:42.7]} 32.
Rb2 {[%clk 0:01:28.7]} 32... Rd6 {[%clk 0:00:42.4]} 33. Bf1 {[%clk 0:01:04.5]}
33... Nd5 {[%clk 0:00:24.5]} 34. Rd2 {[%clk 0:00:57.8]} 34... Rb6 {[%clk
0:00:11.4]} 35. Raxa2 {[%clk 0:00:42.2]} 35... Rxa2 {[%clk 0:00:11.3]} 36. Rxa2
{[%clk 0:00:43.1]} 36... Nxc3 {[%clk 0:00:12.2]} 37. Ra5 {[%clk 0:00:43.1]}
37... Kg6 {[%clk 0:00:10.9]} 38. Bd3 {[%clk 0:00:40.9]} 38... Ne4 {[%clk
0:00:06]} 39. g4 {[%clk 0:00:37.1]} 39... Nd6 {[%clk 0:00:03.1]} 40. Bxf5+
{[%clk 0:00:35.7]} 40... Kf6 {[%clk 0:00:02.5]} 41. h5 {[%clk 0:00:31.8]} 41...
Rb4 {[%clk 0:00:02.3]} 42. f3 {[%clk 0:00:29.3]} 42... Rb2 {[%clk 0:00:01.2]}
43. Bd3 {[%clk 0:00:28.3]} 1-0